[Event "*** SCC Grand Prix: Titled Tuesday Blitz"]
[Site "Chess.com"]
[Date "2020.08.25"]
[Round "10"]
[White "WPWPWP-2015"]
[Black "Gusarov91"]
[Result "1-0"]
[WhiteElo "2496"]
[BlackElo "2625"]
[TimeControl "180+1"]
[EndTime "12:00:46 PDT"]
[Termination "WPWPWP-2015 won by resignation"]

1. e4 {[%clk 0:03:00.9]} 1... c6 {[%clk 0:02:56.8]} 2. d4 {[%clk 0:02:59]} 2...
Na6 {[%clk 0:02:56.4]} 3. c3 {[%clk 0:02:52.6]} 3... Nc7 {[%clk 0:02:56.2]} 4.
Bd3 {[%clk 0:02:46.1]} 4... d5 {[%clk 0:02:56.3]} 5. e5 {[%clk 0:02:45.3]} 5...
g6 {[%clk 0:02:56.8]} 6. Qf3 {[%clk 0:02:38.1]} 6... h5 {[%clk 0:02:55]} 7. h3
{[%clk 0:02:36.1]} 7... Bh6 {[%clk 0:02:53.2]} 8. Be3 {[%clk 0:02:32.4]} 8...
Bxe3 {[%clk 0:02:50.6]} 9. fxe3 {[%clk 0:02:32.3]} 9... Nh6 {[%clk 0:02:50.8]}
10. Ne2 {[%clk 0:02:31.2]} 10... Bf5 {[%clk 0:02:50]} 11. Nf4 {[%clk 0:02:18.1]}
11... Bxd3 {[%clk 0:02:48.1]} 12. Nxd3 {[%clk 0:02:17.6]} 12... e6 {[%clk
0:02:47.9]} 13. Nd2 {[%clk 0:02:14.1]} 13... Nf5 {[%clk 0:02:46.3]} 14. O-O
{[%clk 0:02:06.3]} 14... Qg5 {[%clk 0:02:45.7]} 15. Nf4 {[%clk 0:01:56.2]} 15...
O-O-O {[%clk 0:02:43.1]} 16. e4 {[%clk 0:01:54.1]} 16... Ng3 {[%clk 0:02:19.5]}
17. Rf2 {[%clk 0:01:48.2]} 17... h4 {[%clk 0:02:16.9]} 18. exd5 {[%clk
0:01:43.2]} 18... exd5 {[%clk 0:02:09.7]} 19. Nd3 {[%clk 0:01:30.2]} 19... Nf5
{[%clk 0:01:54.4]} 20. Qf4 {[%clk 0:01:25.4]} 20... Ne6 {[%clk 0:01:51.6]} 21.
Qxg5 {[%clk 0:01:23.3]} 21... Nxg5 {[%clk 0:01:52.2]} 22. Re1 {[%clk 0:01:22.6]}
22... Rdf8 {[%clk 0:01:45]} 23. Nf4 {[%clk 0:01:20.9]} 23... Kd7 {[%clk
0:01:43]} 24. e6+ {[%clk 0:00:53.2]} 24... Nxe6 {[%clk 0:01:42.4]} 25. Rxe6
{[%clk 0:00:52.6]} 25... fxe6 {[%clk 0:01:42.6]} 26. Nxg6 {[%clk 0:00:52.9]}
26... Rfg8 {[%clk 0:01:38.9]} 27. Nxh8 {[%clk 0:00:52]} 27... Rxh8 {[%clk
0:01:39.5]} 28. Rf4 {[%clk 0:00:49.4]} 28... Rg8 {[%clk 0:01:35.7]} 29. Nf3
{[%clk 0:00:48.8]} 29... Rh8 {[%clk 0:01:32.3]} 30. Ne5+ {[%clk 0:00:44.3]}
30... Kc7 {[%clk 0:01:31.4]} 31. Rg4 {[%clk 0:00:42.8]} 31... Rh7 {[%clk
0:01:30.3]} 32. Rg6 {[%clk 0:00:41.5]} 32... Kd6 {[%clk 0:01:28.7]} 33. Nf3
{[%clk 0:00:37.4]} 33... a5 {[%clk 0:01:16.8]} 34. Ng5 {[%clk 0:00:35.4]} 34...
Re7 {[%clk 0:01:16.5]} 35. Rf6 {[%clk 0:00:34.4]} 35... Ng3 {[%clk 0:01:10.3]}
36. Nf7+ {[%clk 0:00:26.2]} 36... Kc7 {[%clk 0:01:09.8]} 37. Ng5 {[%clk
0:00:23.4]} 37... Kd7 {[%clk 0:01:08.6]} 38. Nf3 {[%clk 0:00:22.6]} 38... Nf5
{[%clk 0:01:06]} 39. Ne5+ {[%clk 0:00:20.6]} 39... Kd6 {[%clk 0:01:03.9]} 40.
Nf7+ {[%clk 0:00:20.4]} 40... Kc7 {[%clk 0:01:03.3]} 41. Ng5 {[%clk 0:00:20.1]}
41... Kd7 {[%clk 0:00:59.3]} 42. Nxe6 {[%clk 0:00:19.6]} 42... Rxe6 {[%clk
0:00:58]} 43. Rxf5 {[%clk 0:00:19.9]} 43... Re2 {[%clk 0:00:58.1]} 44. Rf2
{[%clk 0:00:19.8]} 44... Re1+ {[%clk 0:00:58.6]} 45. Kh2 {[%clk 0:00:19.9]}
45... a4 {[%clk 0:00:57.1]} 46. g3 {[%clk 0:00:19.2]} 46... hxg3+ {[%clk
0:00:56.2]} 47. Kxg3 {[%clk 0:00:19.6]} 47... b6 {[%clk 0:00:53]} 48. h4 {[%clk
0:00:19.3]} 48... Rh1 {[%clk 0:00:48.1]} 49. Kg4 {[%clk 0:00:19.2]} 49... Rg1+
{[%clk 0:00:48]} 50. Kf5 {[%clk 0:00:18.7]} 50... Rh1 {[%clk 0:00:47.7]} 51. Kg5
{[%clk 0:00:18.6]} 51... Rg1+ {[%clk 0:00:48.1]} 52. Kf6 {[%clk 0:00:18.5]}
52... Rh1 {[%clk 0:00:47.8]} 53. Kg5 {[%clk 0:00:18.5]} 53... Rg1+ {[%clk
0:00:46.9]} 54. Kh6 {[%clk 0:00:18.5]} 54... Rh1 {[%clk 0:00:47.1]} 55. h5
{[%clk 0:00:18.7]} 55... Ke6 {[%clk 0:00:47.6]} 56. Kg6 {[%clk 0:00:18.7]} 56...
Rg1+ {[%clk 0:00:48.1]} 57. Kh7 {[%clk 0:00:18.9]} 57... Rh1 {[%clk 0:00:48.1]}
58. h6 {[%clk 0:00:19.2]} 58... c5 {[%clk 0:00:46.2]} 59. Kg7 {[%clk 0:00:17.9]}
59... Rg1+ {[%clk 0:00:45.9]} 60. Kh8 {[%clk 0:00:18.1]} 60... Rh1 {[%clk
0:00:45.4]} 61. h7 {[%clk 0:00:17.9]} 61... Ke7 {[%clk 0:00:45.5]} 62. Rf5
{[%clk 0:00:16.3]} 62... cxd4 {[%clk 0:00:45.3]} 63. cxd4 {[%clk 0:00:15.8]}
63... Ke6 {[%clk 0:00:45.6]} 64. Re5+ {[%clk 0:00:15.9]} 64... Kd6 {[%clk
0:00:45.4]} 65. Rg5 {[%clk 0:00:16]} 65... Rc1 {[%clk 0:00:36.9]} 66. Kg7 {[%clk
0:00:14.9]} 66... Rc7+ {[%clk 0:00:36.8]} 67. Kh6 {[%clk 0:00:14.6]} 67... Rc8
{[%clk 0:00:36.8]} 68. Rg8 {[%clk 0:00:13.4]} 68... Rc1 {[%clk 0:00:36.6]} 69.
h8=Q {[%clk 0:00:11]} 69... Rh1+ {[%clk 0:00:37]} 70. Kg7 {[%clk 0:00:11.1]}
70... Rxh8 {[%clk 0:00:36]} 71. Rxh8 {[%clk 0:00:11.2]} 71... Ke6 {[%clk
0:00:36.3]} 72. Rh5 {[%clk 0:00:10.2]} 1-0

[Event "*** SCC Grand Prix: Titled Tuesday Blitz"]
[Site "Chess.com"]
[Date "2020.08.25"]
[Round "10"]
[White "szachuspl"]
[Black "DenLaz"]
[Result "1/2-1/2"]
[WhiteElo "2520"]
[BlackElo "2693"]
[TimeControl "180+1"]
[EndTime "12:00:50 PDT"]
[Termination "Game drawn - insufficient material"]

1. d4 {[%clk 0:03:00.9]} 1... d5 {[%clk 0:02:59.6]} 2. c4 {[%clk 0:03:00.5]}
2... c6 {[%clk 0:02:59.8]} 3. e3 {[%clk 0:03:00.1]} 3... Nf6 {[%clk 0:02:59.6]}
4. Nf3 {[%clk 0:03:00.1]} 4... a6 {[%clk 0:02:57.1]} 5. Nbd2 {[%clk 0:02:58.4]}
5... g6 {[%clk 0:02:51]} 6. Bd3 {[%clk 0:02:57.8]} 6... Bg7 {[%clk 0:02:51.5]}
7. O-O {[%clk 0:02:57.6]} 7... O-O {[%clk 0:02:52.1]} 8. b3 {[%clk 0:02:56.6]}
8... b6 {[%clk 0:02:51.1]} 9. a4 {[%clk 0:02:56.4]} 9... a5 {[%clk 0:02:50.7]}
10. Ba3 {[%clk 0:02:54.5]} 10... Bb7 {[%clk 0:02:51]} 11. Qe2 {[%clk 0:02:54.3]}
11... Nbd7 {[%clk 0:02:50.8]} 12. Rac1 {[%clk 0:02:49.6]} 12... Re8 {[%clk
0:02:49.5]} 13. Rfd1 {[%clk 0:02:48.5]} 13... e6 {[%clk 0:02:48.9]} 14. e4
{[%clk 0:02:47.3]} 14... dxe4 {[%clk 0:02:47.6]} 15. Nxe4 {[%clk 0:02:47.5]}
15... Nxe4 {[%clk 0:02:47.3]} 16. Bxe4 {[%clk 0:02:47.4]} 16... Qc7 {[%clk
0:02:43.2]} 17. h3 {[%clk 0:02:28.5]} 17... f5 {[%clk 0:02:39.4]} 18. Bb1 {[%clk
0:02:27.4]} 18... c5 {[%clk 0:02:39]} 19. Bb2 {[%clk 0:02:10.9]} 19... Rad8
{[%clk 0:02:29.1]} 20. Bc2 {[%clk 0:02:05.4]} 20... cxd4 {[%clk 0:02:27]} 21.
Bxd4 {[%clk 0:01:58.9]} 21... Bxd4 {[%clk 0:02:25.6]} 22. Nxd4 {[%clk
0:01:57.5]} 22... Nc5 {[%clk 0:02:25]} 23. Nb5 {[%clk 0:01:56.4]} 23... Qg7
{[%clk 0:02:24.4]} 24. Nd6 {[%clk 0:01:44.4]} 24... Rf8 {[%clk 0:02:17.6]} 25.
f3 {[%clk 0:01:30.6]} 25... Bc6 {[%clk 0:02:15.4]} 26. Qe3 {[%clk 0:01:23.5]}
26... Rd7 {[%clk 0:02:08.8]} 27. Nb5 {[%clk 0:01:23.4]} 27... Rfd8 {[%clk
0:02:02]} 28. Rxd7 {[%clk 0:01:19.9]} 28... Rxd7 {[%clk 0:02:02.1]} 29. Nc3
{[%clk 0:01:13.1]} 29... Qd4 {[%clk 0:01:57]} 30. Qxd4 {[%clk 0:01:12.3]} 30...
Rxd4 {[%clk 0:01:57.9]} 31. Rd1 {[%clk 0:01:09.5]} 31... Rxd1+ {[%clk 0:01:58]}
32. Bxd1 {[%clk 0:01:08.2]} 32... Kf7 {[%clk 0:01:56.6]} 33. Kf2 {[%clk
0:01:05.8]} 33... e5 {[%clk 0:01:56.8]} 34. Ke3 {[%clk 0:01:04.3]} 34... Ke6
{[%clk 0:01:56.7]} 35. g3 {[%clk 0:01:01.5]} 35... g5 {[%clk 0:01:48.6]} 36. f4
{[%clk 0:00:58.8]} 36... exf4+ {[%clk 0:01:49.2]} 37. gxf4 {[%clk 0:00:58.9]}
37... h6 {[%clk 0:01:49.8]} 38. Bf3 {[%clk 0:00:52.1]} 38... Bxf3 {[%clk
0:01:48.5]} 39. Kxf3 {[%clk 0:00:52.1]} 39... Nxb3 {[%clk 0:01:49.1]} 40. Nd5
{[%clk 0:00:50.4]} 40... Nd2+ {[%clk 0:01:48.3]} 41. Ke3 {[%clk 0:00:46.7]}
41... Nxc4+ {[%clk 0:01:49.2]} 42. Kd4 {[%clk 0:00:47.2]} 42... Nb2 {[%clk
0:01:28.6]} 43. fxg5 {[%clk 0:00:47.1]} 43... hxg5 {[%clk 0:01:27.7]} 44. Nxb6
{[%clk 0:00:47.1]} 44... f4 {[%clk 0:01:23.4]} 45. Kc3 {[%clk 0:00:37.7]} 45...
Nd1+ {[%clk 0:01:12.2]} 46. Kd2 {[%clk 0:00:37.8]} 46... Nf2 {[%clk 0:01:12.8]}
47. Nc4 {[%clk 0:00:37.5]} 47... Nxh3 {[%clk 0:01:12.3]} 48. Nxa5 {[%clk
0:00:37.3]} 48... g4 {[%clk 0:01:10]} 49. Nc6 {[%clk 0:00:34.1]} 49... Ng5
{[%clk 0:00:42.8]} 50. a5 {[%clk 0:00:29.2]} 50... Ne4+ {[%clk 0:00:42]} 51. Ke1
{[%clk 0:00:25.7]} 51... f3 {[%clk 0:00:17.4]} 52. Nd4+ {[%clk 0:00:21.3]} 52...
Ke5 {[%clk 0:00:16.2]} 53. Nc2 {[%clk 0:00:16.2]} 53... g3 {[%clk 0:00:13.8]}
54. Ne3 {[%clk 0:00:15.7]} 54... f2+ {[%clk 0:00:05.7]} 55. Ke2 {[%clk
0:00:13.4]} 55... Nc5 {[%clk 0:00:02.4]} 56. Kf3 {[%clk 0:00:12]} 56... Kd4
{[%clk 0:00:02.8]} 57. Nf1 {[%clk 0:00:11.4]} 57... Kd3 {[%clk 0:00:02.9]} 58.
Kxg3 {[%clk 0:00:11.8]} 58... Kc4 {[%clk 0:00:02.9]} 59. Kxf2 {[%clk 0:00:11.9]}
59... Kb5 {[%clk 0:00:03.4]} 60. Ne3 {[%clk 0:00:12.5]} 60... Kxa5 {[%clk
0:00:03.9]} 1/2-1/2

[Event "*** SCC Grand Prix: Titled Tuesday Blitz"]
[Site "Chess.com"]
[Date "2020.08.25"]
[Round "10"]
[White "Sn00pPawn"]
[Black "annacramling"]
[Result "1/2-1/2"]
[WhiteElo "2001"]
[BlackElo "2103"]
[TimeControl "180+1"]
[EndTime "12:00:55 PDT"]
[Termination "Game drawn by repetition"]

1. d4 {[%clk 0:03:00.9]} 1... Nf6 {[%clk 0:02:59.7]} 2. Nf3 {[%clk 0:02:59.3]}
2... d5 {[%clk 0:02:58.8]} 3. g3 {[%clk 0:02:58.8]} 3... e6 {[%clk 0:02:55.6]}
4. c4 {[%clk 0:02:59.1]} 4... Bb4+ {[%clk 0:02:53.3]} 5. Bd2 {[%clk 0:02:54.8]}
5... Bd6 {[%clk 0:02:51.9]} 6. Bg2 {[%clk 0:02:47.2]} 6... c6 {[%clk 0:02:47.4]}
7. Qb3 {[%clk 0:02:42.1]} 7... O-O {[%clk 0:02:45.5]} 8. Bb4 {[%clk 0:02:23]}
8... a5 {[%clk 0:02:23.2]} 9. Bxd6 {[%clk 0:02:18.6]} 9... Qxd6 {[%clk
0:02:24.1]} 10. O-O {[%clk 0:02:14.5]} 10... dxc4 {[%clk 0:02:21.9]} 11. Qxc4
{[%clk 0:02:13.2]} 11... b5 {[%clk 0:02:22.8]} 12. Qc2 {[%clk 0:02:10.1]} 12...
Bb7 {[%clk 0:02:20.8]} 13. Rc1 {[%clk 0:02:05.1]} 13... Nbd7 {[%clk 0:02:17.8]}
14. Nbd2 {[%clk 0:01:45.3]} 14... Rac8 {[%clk 0:02:16.8]} 15. a4 {[%clk
0:01:25.5]} 15... c5 {[%clk 0:02:03.7]} 16. axb5 {[%clk 0:01:24.7]} 16... cxd4
{[%clk 0:02:03.3]} 17. Qd3 {[%clk 0:01:24.3]} 17... e5 {[%clk 0:01:57.1]} 18.
Nc4 {[%clk 0:01:18.6]} 18... Qe7 {[%clk 0:01:00]} 19. Nxa5 {[%clk 0:01:13.2]}
19... e4 {[%clk 0:00:59.2]} 20. Qxd4 {[%clk 0:01:02.2]} 20... exf3 {[%clk
0:00:59.3]} 21. exf3 {[%clk 0:00:54]} 21... Ba8 {[%clk 0:00:55.4]} 22. Rxc8
{[%clk 0:00:33.8]} 22... Rxc8 {[%clk 0:00:55.1]} 23. Bh3 {[%clk 0:00:34.6]}
23... Re8 {[%clk 0:00:48.9]} 24. b6 {[%clk 0:00:24.5]} 24... Bxf3 {[%clk
0:00:39.4]} 25. b7 {[%clk 0:00:18.4]} 25... Ne5 {[%clk 0:00:24.9]} 26. Re1
{[%clk 0:00:15.8]} 26... Bxb7 {[%clk 0:00:09.4]} 27. Rxe5 {[%clk 0:00:13.7]}
27... Qxe5 {[%clk 0:00:08.9]} 28. Qxe5 {[%clk 0:00:13.3]} 28... Rxe5 {[%clk
0:00:09.2]} 29. Nxb7 {[%clk 0:00:13]} 29... Rb5 {[%clk 0:00:08.2]} 30. Nd6
{[%clk 0:00:11.5]} 30... Rxb2 {[%clk 0:00:08]} 31. Kg2 {[%clk 0:00:08.9]} 31...
Kf8 {[%clk 0:00:07.9]} 32. Nf5 {[%clk 0:00:08.1]} 32... g6 {[%clk 0:00:07.5]}
33. Ne3 {[%clk 0:00:04.4]} 33... Ke7 {[%clk 0:00:06.8]} 34. Kf3 {[%clk
0:00:03.8]} 34... Kd6 {[%clk 0:00:06.7]} 35. Bf1 {[%clk 0:00:03.6]} 35... Nd5
{[%clk 0:00:06.5]} 36. Nxd5 {[%clk 0:00:02.8]} 36... Kxd5 {[%clk 0:00:06.8]} 37.
h4 {[%clk 0:00:01.9]} 37... Kd4 {[%clk 0:00:06.2]} 38. Bh3 {[%clk 0:00:02.3]}
38... h5 {[%clk 0:00:05.8]} 39. g4 {[%clk 0:00:02.3]} 39... hxg4+ {[%clk
0:00:05.2]} 40. Bxg4 {[%clk 0:00:02.3]} 40... Ke5 {[%clk 0:00:05.3]} 41. h5
{[%clk 0:00:02.6]} 41... gxh5 {[%clk 0:00:04.6]} 42. Bxh5 {[%clk 0:00:02.7]}
42... f5 {[%clk 0:00:04.9]} 43. Kg3 {[%clk 0:00:02.6]} 43... f4+ {[%clk
0:00:04.8]} 44. Kf3 {[%clk 0:00:02.4]} 44... Rb3+ {[%clk 0:00:04.7]} 45. Kg2
{[%clk 0:00:02.3]} 45... Ke4 {[%clk 0:00:04.9]} 46. Bg6+ {[%clk 0:00:02.2]}
46... Ke5 {[%clk 0:00:02.8]} 47. Bh5 {[%clk 0:00:02.5]} 47... Kf6 {[%clk
0:00:03.1]} 48. Bg4 {[%clk 0:00:02.5]} 48... Kg5 {[%clk 0:00:03.6]} 49. Bf3
{[%clk 0:00:02.8]} 49... Kh4 {[%clk 0:00:03.5]} 50. Be4 {[%clk 0:00:03]} 50...
Rc3 {[%clk 0:00:03.6]} 51. Bd5 {[%clk 0:00:02.9]} 51... Rd3 {[%clk 0:00:03.5]}
52. Be4 {[%clk 0:00:03.1]} 52... Ra3 {[%clk 0:00:03.4]} 53. Bd5 {[%clk
0:00:03.3]} 53... Kg5 {[%clk 0:00:03.9]} 54. Be4 {[%clk 0:00:03.3]} 54... Kf6
{[%clk 0:00:04]} 55. Bf3 {[%clk 0:00:03.4]} 55... Ke5 {[%clk 0:00:04]} 56. Bc6
{[%clk 0:00:03.5]} 56... Ra1 {[%clk 0:00:04.3]} 57. Bf3 {[%clk 0:00:04.4]} 57...
Rb1 {[%clk 0:00:04.2]} 58. Bh5 {[%clk 0:00:04.2]} 58... Kd4 {[%clk 0:00:04.7]}
59. Bg6 {[%clk 0:00:04.2]} 59... Rb2 {[%clk 0:00:04.4]} 60. Bh7 {[%clk 0:00:04]}
60... Ke5 {[%clk 0:00:04.7]} 61. Bg6 {[%clk 0:00:04]} 61... Rb3 {[%clk 0:00:05]}
62. Bh5 {[%clk 0:00:04]} 1/2-1/2

[Event "*** SCC Grand Prix: Titled Tuesday Blitz"]
[Site "Chess.com"]
[Date "2020.08.25"]
[Round "10"]
[White "fianchettoer"]
[Black "serena-maria"]
[Result "1-0"]
[WhiteElo "2431"]
[BlackElo "2293"]
[TimeControl "180+1"]
[EndTime "12:01:01 PDT"]
[Termination "fianchettoer won by checkmate"]

1. Nf3 {[%clk 0:03:00.9]} 1... Nf6 {[%clk 0:02:59.8]} 2. e3 {[%clk 0:03:01]}
2... g6 {[%clk 0:03:00.1]} 3. b3 {[%clk 0:02:59.4]} 3... Bg7 {[%clk 0:03:00.3]}
4. Bb2 {[%clk 0:03:00.3]} 4... O-O {[%clk 0:03:01.1]} 5. d4 {[%clk 0:03:00.7]}
5... d5 {[%clk 0:03:00.9]} 6. Be2 {[%clk 0:03:00.7]} 6... b6 {[%clk 0:03:00.9]}
7. O-O {[%clk 0:03:01]} 7... Bb7 {[%clk 0:03:01.4]} 8. c4 {[%clk 0:03:00.4]}
8... c5 {[%clk 0:03:01.1]} 9. dxc5 {[%clk 0:02:59.9]} 9... bxc5 {[%clk
0:03:00.6]} 10. cxd5 {[%clk 0:03:00.4]} 10... Qxd5 {[%clk 0:02:49.7]} 11. Qxd5
{[%clk 0:02:58.3]} 11... Nxd5 {[%clk 0:02:48.4]} 12. Bxg7 {[%clk 0:02:59.2]}
12... Kxg7 {[%clk 0:02:49.2]} 13. Rc1 {[%clk 0:02:58.7]} 13... Nd7 {[%clk
0:02:41.6]} 14. Nc3 {[%clk 0:02:58.7]} 14... Nxc3 {[%clk 0:02:31.5]} 15. Rxc3
{[%clk 0:02:59.6]} 15... Rfd8 {[%clk 0:02:31.5]} 16. Rac1 {[%clk 0:02:59.4]}
16... f6 {[%clk 0:02:22.9]} 17. Ne1 {[%clk 0:02:55.4]} 17... Rac8 {[%clk
0:02:03.7]} 18. Nd3 {[%clk 0:02:50.4]} 18... Ba6 {[%clk 0:02:02.1]} 19. Bf1
{[%clk 0:02:44.8]} 19... Bxd3 {[%clk 0:01:58.5]} 20. Bxd3 {[%clk 0:02:45.4]}
20... Ne5 {[%clk 0:01:38.1]} 21. Ba6 {[%clk 0:02:45.2]} 21... Rc6 {[%clk
0:01:34.3]} 22. Bb5 {[%clk 0:02:45.3]} 22... Rcd6 {[%clk 0:01:14.8]} 23. Bf1
{[%clk 0:02:23.6]} 23... Rd2 {[%clk 0:00:50.5]} 24. R3c2 {[%clk 0:02:17]} 24...
Kf7 {[%clk 0:00:28.1]} 25. h3 {[%clk 0:02:13.2]} 25... Rxc2 {[%clk 0:00:17.1]}
26. Rxc2 {[%clk 0:02:13.3]} 26... Rc8 {[%clk 0:00:16.3]} 27. f4 {[%clk
0:02:09.7]} 27... Nd7 {[%clk 0:00:13.5]} 28. Bc4+ {[%clk 0:02:06.8]} 28... e6
{[%clk 0:00:13.8]} 29. Ba6 {[%clk 0:02:05.6]} 29... Rc7 {[%clk 0:00:12.8]} 30.
Kf2 {[%clk 0:02:00.8]} 30... Ke7 {[%clk 0:00:13.1]} 31. g4 {[%clk 0:01:58.9]}
31... Nb6 {[%clk 0:00:13.2]} 32. Kf3 {[%clk 0:01:57.4]} 32... f5 {[%clk
0:00:11.2]} 33. g5 {[%clk 0:01:57.4]} 33... Nd5 {[%clk 0:00:10.7]} 34. a3 {[%clk
0:01:54.4]} 34... Rc6 {[%clk 0:00:06.7]} 35. Bc4 {[%clk 0:01:52]} 35... Kd6
{[%clk 0:00:06.5]} 36. h4 {[%clk 0:01:51.7]} 36... Rb6 {[%clk 0:00:06.6]} 37. h5
{[%clk 0:01:49.4]} 37... Rb8 {[%clk 0:00:02.6]} 38. hxg6 {[%clk 0:01:44.4]}
38... hxg6 {[%clk 0:00:03.5]} 39. Rh2 {[%clk 0:01:44.5]} 39... Rg8 {[%clk
0:00:02.2]} 40. Rh7 {[%clk 0:01:43.8]} 40... Ne7 {[%clk 0:00:02.8]} 41. Rf7
{[%clk 0:01:37.9]} 41... a5 {[%clk 0:00:02.6]} 42. Rh7 {[%clk 0:01:28.9]} 42...
Nd5 {[%clk 0:00:01.1]} 43. Ra7 {[%clk 0:01:18.4]} 43... Kc6 {[%clk 0:00:01.5]}
44. Rxa5 {[%clk 0:01:15.3]} 44... Rh8 {[%clk 0:00:02.1]} 45. Ra6+ {[%clk
0:01:13]} 45... Nb6 {[%clk 0:00:02.5]} 46. Kg3 {[%clk 0:01:08.7]} 46... Kb7
{[%clk 0:00:02.9]} 47. Ra5 {[%clk 0:01:08.6]} 47... Kc6 {[%clk 0:00:03]} 48.
Bxe6 {[%clk 0:01:06.1]} 48... Re8 {[%clk 0:00:02.5]} 49. Bf7 {[%clk 0:01:00.6]}
49... Rxe3+ {[%clk 0:00:03]} 50. Kf2 {[%clk 0:01:01.2]} 50... Re4 {[%clk
0:00:03.6]} 51. Kf3 {[%clk 0:00:59.4]} 51... Re1 {[%clk 0:00:03.6]} 52. Bxg6
{[%clk 0:00:58.3]} 52... Rf1+ {[%clk 0:00:04.3]} 53. Kg3 {[%clk 0:00:54.1]}
53... Rb1 {[%clk 0:00:05.2]} 54. Bf7 {[%clk 0:00:52.2]} 54... Nd5 {[%clk
0:00:04.4]} 55. Bxd5+ {[%clk 0:00:46.2]} 55... Kxd5 {[%clk 0:00:05.3]} 56. b4
{[%clk 0:00:47]} 56... Ke4 {[%clk 0:00:04.8]} 57. Rxc5 {[%clk 0:00:44]} 57...
Rb3+ {[%clk 0:00:05]} 58. Kf2 {[%clk 0:00:35.4]} 58... Kxf4 {[%clk 0:00:05.5]}
59. g6 {[%clk 0:00:35.8]} 59... Rxa3 {[%clk 0:00:05.5]} 60. Rc4+ {[%clk
0:00:29.9]} 60... Kg5 {[%clk 0:00:05.5]} 61. g7 {[%clk 0:00:30.8]} 61... Ra8
{[%clk 0:00:05.6]} 62. Rc7 {[%clk 0:00:28.6]} 62... Kf6 {[%clk 0:00:05.6]} 63.
b5 {[%clk 0:00:28.3]} 63... Rb8 {[%clk 0:00:02.9]} 64. b6 {[%clk 0:00:28.1]}
64... Ke6 {[%clk 0:00:02.6]} 65. b7 {[%clk 0:00:27.9]} 65... Kf6 {[%clk
0:00:02.6]} 66. Rc8 {[%clk 0:00:26.8]} 66... Rxb7 {[%clk 0:00:03.2]} 67. g8=Q
{[%clk 0:00:27.2]} 67... Rb2+ {[%clk 0:00:04.1]} 68. Kf1 {[%clk 0:00:27]} 68...
Rb3 {[%clk 0:00:05]} 69. Rc6+ {[%clk 0:00:26]} 69... Ke5 {[%clk 0:00:04.8]} 70.
Qxb3 {[%clk 0:00:26.6]} 70... Kf4 {[%clk 0:00:05.7]} 71. Rc4+ {[%clk 0:00:26.4]}
71... Kg5 {[%clk 0:00:06.6]} 72. Qg3+ {[%clk 0:00:26.4]} 72... Kf6 {[%clk
0:00:06.9]} 73. Rc6+ {[%clk 0:00:26.8]} 73... Ke7 {[%clk 0:00:07.2]} 74. Qc7+
{[%clk 0:00:27.5]} 74... Ke8 {[%clk 0:00:07.7]} 75. Rb6 {[%clk 0:00:28.1]} 75...
f4 {[%clk 0:00:08]} 76. Rb8# {[%clk 0:00:29]} 1-0